Cogmind - Beta 13 @@@ ROGUE MODE // 2024.04.11 @ 01:49:04 Player: GregoriusTechneticies Result: Destroyed by Y-45 Defender with Beam Rifle Performance ------------- Evolutions (2) 1000 Regions Visited (5) 1000 Robots Destroyed (54) 270 Value Destroyed (791) 791 Prototype IDs (2) 40 Alien Tech Used (0) 0 Bonus (300) 300 TOTAL SCORE: 3401 Bonus ------- Aligned with FarCom 300 Cogmind --------- Core Integrity 0/550 Matter 248/300 Energy 73/125 System Corruption 0% Temperature Warm (149) Movement Core (150) Ox2 Location -8/Materials Parts ------- > --- POWER (1) -------- Light Ion Engine > --- PROPULSION (4) --- (None) > --- UTILITY (4) ------ Improved Terrain Scan Processor Advanced Targeting Computer > --- WEAPON (2) ------- Precision Beam Rifle Precision Beam Rifle > --- INVENTORY (5) ---- Datajack Mining Laser Peak State ------------ > --- POWER ------------ Backup Power III > --- PROPULSION ------- Flying Fortress v7 > --- UTILITY ---------- Improved Sensor Array Improved Terrain Scanner Terrain Scan Processor Advanced Targeting Computer > --- WEAPON ----------- Shotgun Shotgun > --- INVENTORY -------- Backup Power I Flight Unit Flight Unit Datajack Mining Laser [Rating: 50] Favorites ----------- Power Backup Power I Engine Backup Power I Power Core Light Nuclear Core Propulsion Flight Unit Treads Light Treads Flight Unit Flight Unit Utility Terrain Scan Processor Device Terrain Scanner Processor Terrain Scan Processor Protection Light Armor Plating Weapon Light Assault Rifle Energy Gun Precision Beam Rifle Ballistic Gun Light Assault Rifle Special Weapon Mining Laser Special Melee Weapon Datajack Build | -11 -10 -10 -10 -9 -8 ------- Run | Yrd Mat Min Exi Min Mat Slots Evolved 4 | . . . . . 4 Power . | . . . . . . Propulsion 2 | . . . . . 2 Utility 2 | . . . . . 2 Weapon . | . . . . . . Parts Attached 57 | 7 8 15 2 . 25 Power 6 | 3 . . . . 3 Engine 5 | 3 . . . . 2 Core 1 | . . . . . 1 Reactor . | . . . . . . Propulsion 14 | 2 4 5 . . 3 Treads 4 | 2 2 . . . . Leg . | . . . . . . Wheel . | . . . . . . Hover . | . . . . . . Flight 10 | . 2 5 . . 3 Utility 12 | . 1 4 . . 7 Device 8 | . 1 3 . . 4 Storage . | . . . . . . Processor 3 | . . 1 . . 2 Hackware . | . . . . . . Protection 1 | . . . . . 1 Artifact . | . . . . . . Weapon 25 | 2 3 6 2 . 12 Energy Gun 3 | . . . . . 3 Energy Cannon . | . . . . . . Ballistic Gun 15 | 2 1 6 . . 6 Ballistic Cannon . | . . . . . . Launcher . | . . . . . . Special Weapon 6 | . 2 . 1 . 3 Impact Weapon . | . . . . . . Slashing Weapon . | . . . . . . Piercing Weapon . | . . . . . . Special Melee Weapon 1 | . . . 1 . . Unidentified Prototypes 2 | . . . . . 2 Parts Lost 15 | . . 3 . . 12 Power 2 | . . . . . 2 Propulsion 4 | . . 1 . . 3 Utility 5 | . . 2 . . 3 Weapon 4 | . . . . . 4 Highest Loss Streak 10 | . . 2 . . 10 To Critical Strikes . | . . . . . . Average Slot Usage (%) 91 | . 69 85 100 100 62 Engine 11 | . 2 14 14 14 3 Flight 23 | . 3 26 28 28 7 Device 14 | . 13 15 14 14 14 Processor 12 | . . . 14 14 17 Ballistic Gun 6 | . 20 28 14 . 13 Special Weapon 10 | . 7 . 7 14 . Special Melee Weapon 9 | . . . 6 14 . Naked Turns . | . . . . . . Heaviest Build 10 | 5 4 5 4 4 10 Greatest Support 50 | 3 20 8 8 8 50 Greatest Overweight (x) 1 | 1 . 1 . . . Average Overweight (x) . | . . . . . . Largest Inventory Capacity 5 | 5 5 5 5 5 5 Average Capacity 5 | 5 5 5 5 5 5 Most Carried 5 | 5 5 5 5 5 5 Average Carried 4 | 2 4 4 4 5 4 Final Capacity 5 | 5 5 5 5 5 5 Final Carried 5 | 3 3 5 5 5 2 Class Distribution -------------------- 60% | Scavenger-Scout 24% | Mutant 11% | Scavenger-Mutant Dominant Class ---------------- Mutant | -10/Materials Scavenger-Mutant | -10/Mines Scavenger-Mutant | -10/Exiles Scavenger-Scout | -9/Mines Scavenger-Scout | -8/Materials Resources | -11 -10 -10 -10 -9 -8 ----------- Run | Yrd Mat Min Exi Min Mat Matter Collected 983 | 308 43 247 . . 385 Remotely . | . . . . . . Salvage Created 1343 | 223 46 237 . . 837 Parts 135 | 20 8 31 . 2 74 Haulers Intercepted 1 | . . . . . 1 Recyclers Shooed . | . . . . . . Parts Field Recycled . | . . . . . . Retrieved Matter . | . . . . . . Parts Self-Destructed . | . . . . . . Prevented . | . . . . . . Kills | -11 -10 -10 -10 -9 -8 ------- Run | Yrd Mat Min Exi Min Mat Combat Hostiles Destroyed 30 | . . 8 . . 22 Guns 30 | . . 8 . . 22 Classes Destroyed 9 | 3 1 1 . . 4 Worker 5 | 2 2 1 . . . Builder 7 | . 1 3 . 1 2 Tunneler 9 | 5 . 1 . 1 2 Hauler 1 | . . . . . 1 Recycler 1 | 1 . . . . . Operator 1 | . . . . . 1 Swarmer 21 | . . 8 . . 13 Grunt 8 | . . . . . 8 Sentry 1 | . . . . . 1 Best Kill Streak 6 | 5 3 3 . 1 6 Combat Bots Only 6 | . . 3 . . 6 Max Kills in Single Turn 2 | 1 1 1 . 1 2 Gunslinging 1 | . . . . . 1 Exploded . | . . . . . . Melee . | . . . . . . Uniques/NPCs Destroyed . | . . . . . . Combat | -11 -10 -10 -10 -9 -8 -------- Run | Yrd Mat Min Exi Min Mat Hostile Shots Fired 281 | . . 46 . . 235 Missed 95 | . . 17 . . 78 Damage Taken 2420 | . 182 231 . . 2007 Core 606 | . . 55 . . 551 Absorbed by Shields . | . . . . . . Core Remaining (%) 89 | 100 . . . 78 . Volleys Fired 200 | 19 11 32 . 10 128 Largest 2 | 2 2 2 . 1 2 Hottest 122 | 40 100 40 . 100 122 Shots Fired 335 | 38 17 64 . 10 206 Gun 315 | 38 12 64 . . 201 Cannon . | . . . . . . Launcher . | . . . . . . Special 20 | . 5 . . 10 5 Kinetic 289 | 38 12 64 . . 175 Thermal 46 | . 5 . . 10 31 Explosive . | . . . . . . Electromagnetic . | . . . . . . Robot Hit Streak 24 | 4 4 8 . 5 24 Robot Miss Streak 6 | 2 5 6 . 4 6 Penetration Max . | . . . . . . Secondary Targets 2 | . . 1 . . 1 Max Gunslinging Chain 1 | . . 1 . . 1 Shots Hit Robots 226 | 24 5 33 . 4 160 Core Hits 110 | 16 6 23 . 2 63 Critical Kills 2 | . . 2 . . . Critical Parts Destroyed . | . . . . . . Critical Strikes 4 | . . 2 . . 2 Burn 2 | . . . . . 2 Destroy 2 | . . 2 . . . Melee Attacks . | . . . . . . Impact . | . . . . . . Slashing . | . . . . . . Piercing . | . . . . . . Sneak Attacks . | . . . . . . Combat Hostiles . | . . . . . . Follow-up Attacks . | . . . . . . Damage Inflicted 2288 | 196 151 268 . 96 1577 Guns 2079 | 196 38 268 . . 1577 Cannons . | . . . . . . Explosions 113 | . 113 . . . . Melee . | . . . . . . Ramming . | . . . . . . Kinetic 1644 | 196 38 268 . . 1142 Thermal 531 | . . . . 96 435 Explosive 113 | . 113 . . . . Electromagnetic . | . . . . . . Impact . | . . . . . . Slashing . | . . . . . . Piercing . | . . . . . . Highest Corruption . | . . . . . . Average Corruption . | . . . . . . Corruption Purged . | . . . . . . Corruption Blocked . | . . . . . . Overload Shots . | . . . . . . Overflow Damage . | . . . . . . Projectiles . | . . . . . . Explosions . | . . . . . . Melee . | . . . . . . Knockbacks . | . . . . . . Impact . | . . . . . . Kinetic . | . . . . . . Secondary . | . . . . . . Self-Inflicted Damage 182 | . 182 . . . . Shots 2 | . 2 . . . . Rammed . | . . . . . . Targets Rammed . | . . . . . . Kicked . | . . . . . . Crushed . | . . . . . . Highest Temperature 140 | . 16 4 . 42 140 Average Temperature 23 | . 10 2 . 14 27 Received Heat Transfer 873 | . . . . . 873 Siege Activations . | . . . . . . Robots Corrupted . | . . . . . . Combat Hostiles . | . . . . . . Parts Fried . | . . . . . . Impact Corruptions . | . . . . . . Robots Melted . | . . . . . . Combat Hostiles . | . . . . . . Parts Melted 1 | . . . . . 1 Heat Transferred 1310 | . . . . 200 1110 Parts Sabotaged . | . . . . . . Parts Stolen . | . . . . . . Parts Stripped . | . . . . . . Power Chain Reactions . | . . . . . . Alert | -11 -10 -10 -10 -9 -8 ------- Run | Yrd Mat Min Exi Min Mat Peak Influence 237 | 40 127 224 . 6 237 Initial 49 | . . 49 . . . Average 30 | 14 42 159 . 1 113 Maximum Alert Level 1 | . . 1 . . 1 Low Security (%) 95 | 100 100 50 . 100 86 Level 1 4 | . . 49 . . 13 Level 2 . | . . . . . . Level 3 . | . . . . . . Level 4 . | . . . . . . Level 5 . | . . . . . . High Security . | . . . . . . Max Security . | . . . . . . Squads Dispatched 7 | . 2 . . 1 4 Investigation 1 | . 1 . . . . Extermination . | . . . . . . Reinforcement 4 | . 1 . . 1 2 Assault . | . . . . . . Garrison 2 | . . . . . 2 Intercept . | . . . . . . Searches Triggered . | . . . . . . Construction Impeded 1 | . . . . 1 . Haulers Reinforced . | . . . . . . Active Scanning Responses . | . . . . . . Cargo Convoy Interrupts . | . . . . . . Stealth | -11 -10 -10 -10 -9 -8 --------- Run | Yrd Mat Min Exi Min Mat Distress Signals 2 | . . . . . 2 Communications Jammed . | . . . . . . Distress Signals . | . . . . . . Times Spotted 41 | . 2 9 . . 30 Peak Tracking Total 7 | . 1 3 . . 7 Tactical Retreats 3 | . . . . . 3 Traps | -11 -10 -10 -10 -9 -8 ------- Run | Yrd Mat Min Exi Min Mat Traps Triggered . | . . . . . . Indirectly . | . . . . . . Trap Hack Attempts . | . . . . . . Triggered . | . . . . . . Disarmed . | . . . . . . Reprogrammed . | . . . . . . Reused . | . . . . . . Traps Extracted . | . . . . . . Installed . | . . . . . . Triggered . | . . . . . . Machines | -11 -10 -10 -10 -9 -8 ---------- Run | Yrd Mat Min Exi Min Mat Machines Disabled 3 | . 3 . . . . Max in Single Turn 3 | . 3 . . . . Machines Repaired . | . . . . . . Machines Dismantled . | . . . . . . Machines Sabotaged . | . . . . . . Overloaded Fab Kills . | . . . . . . Hacking | -11 -10 -10 -10 -9 -8 --------- Run | Yrd Mat Min Exi Min Mat Machines Accessed 9 | . 4 1 . . 4 Terminals 7 | . 3 1 . . 3 Fabricators . | . . . . . . Repair Stations 2 | . 1 . . . 1 Recycling Units . | . . . . . . Scanalyzers . | . . . . . . Garrison Access . | . . . . . . Total Hacks 29 | . 14 2 . . 13 Successful 5 | . 1 . . . 4 Failed 24 | . 13 2 . . 9 Catastrophic 3 | . 2 . . . 1 Database Lockouts . | . . . . . . Manual 23 | . 8 2 1 . 12 Terminals 22 | . 8 2 . . 12 Fabricators . | . . . . . . Repair Stations 7 | . 6 . . . 1 Recycling Units . | . . . . . . Scanalyzers . | . . . . . . Garrison Access . | . . . . . . Terminal Hacks 1 | . . . . . 1 Unreport Threat 1 | . . . . . 1 Fabricator Hacks . | . . . . . . Repair Station Hacks 2 | . 1 . . . 1 Refit 2 | . 1 . . . 1 Recycling Unit Hacks . | . . . . . . Scanalyzer . | . . . . . . Garrison Access Hacks . | . . . . . . Unauthorized Hacks 2 | . . . . . 2 Terminals 2 | . . . . . 2 Botnet 2 | . . . . . 2 Fabricators . | . . . . . . Repair Stations . | . . . . . . Recycling Units . | . . . . . . Scanalyzers . | . . . . . . Garrison Access . | . . . . . . Data Cores Recovered . | . . . . . . Used . | . . . . . . Hacking Detections 9 | . 4 1 . . 4 Full Trace Events 2 | . 2 . . . . Feedback Events . | . . . . . . Feedback Blocked . | . . . . . . Robot Schematics Acquired . | . . . . . . Robots Built . | . . . . . . Authchips . | . . . . . . Time . | . . . . . . Total Robot Build Rating . | . . . . . . Part Schematics Acquired . | . . . . . . Parts Built . | . . . . . . Authchips . | . . . . . . Time . | . . . . . . Total Part Build Rating . | . . . . . . Parts Repaired . | . . . . . . Time . | . . . . . . Parts Recycled . | . . . . . . Recycled Matter . | . . . . . . Retrieved Matter . | . . . . . . Retrieved Components . | . . . . . . Parts Scanalyzed . | . . . . . . Part Schematics Acquired . | . . . . . . Parts Damaged . | . . . . . . Bothacking | -11 -10 -10 -10 -9 -8 ------------ Run | Yrd Mat Min Exi Min Mat Used RIF Installer . | . . . . . . Robots Hacked . | . . . . . . Non-combat . | . . . . . . Combat . | . . . . . . Robot Hacks Applied . | . . . . . . Relay Couplers Released . | . . . . . . Fabnet Peak Effective % . | . . . . . . Robots Rewired . | . . . . . . Allies Hacked . | . . . . . . Hacks Repelled . | . . . . . . Allies | -11 -10 -10 -10 -9 -8 -------- Run | Yrd Mat Min Exi Min Mat Total Allies . | . . . . . . Largest Group . | . . . . . . Highest-Rated Group . | . . . . . . Highest-Rated Ally . | . . . . . . Total Orders . | . . . . . . Ally Attacks . | . . . . . . Total Damage . | . . . . . . Kills . | . . . . . . Allies Corrupted . | . . . . . . Allies Melted . | . . . . . . Intel | -11 -10 -10 -10 -9 -8 ------- Run | Yrd Mat Min Exi Min Mat Robot Analysis Total . | . . . . . . Derelict Logs Recovered 4 | . . 3 . 1 . Drone Launches . | . . . . . . Drone Recoveries . | . . . . . . Exploration | -11 -10 -10 -10 -9 -8 ------------- Run | Yrd Mat Min Exi Min Mat Turns Passed 4615 | 895 170 275 250 2464 561 Spaces Moved 2105 | 147 196 405 658 321 378 Core 302 | 147 142 . . . 13 Treads 1 | . 1 . . . . Legs . | . . . . . . Wheels . | . . . . . . Hover . | . . . . . . Flight 1802 | . 53 405 658 321 365 Fastest Speed 37 | 50 40 37 37 37 37 Average Speed 43 | 78 47 37 37 37 49 Slowest Speed 160 | 100 160 120 37 37 50 Overloaded Moves . | . . . . . . Propulsion Burnouts . | . . . . . . Robots Hopped 8 | . . 1 . 5 2 Cave-ins Triggered . | . . . . . . Exploration Rate (%) 47 | 5 33 70 92 62 23 Regions Visited 5 Branch Regions 3 Pre-discovered Areas . | . . . . . . Known Exits Taken . | . . . . . . Unknown Exits Taken 5 | 1 1 1 1 1 . Scrap Searched 1 | . . 1 . . . Spaces Dug 10 | . 5 . . 2 3 Terrain Destroyed 51 | . 43 . . 4 4 Melee . | . . . . . . Projectile 13 | . 5 . . 4 4 AOE 38 | . 38 . . . . Terrain Rammed . | . . . . . . Walls Destroyed . | . . . . . . Machines Disabled . | . . . . . . Actions | -11 -10 -10 -10 -9 -8 --------- Run | Yrd Mat Min Exi Min Mat Total 5487 | 898 248 476 664 2631 570 Wait 3061 | 708 24 12 . 2304 13 Move 2084 | 146 195 402 657 310 374 Hop 8 | . . 1 . 5 2 Pick Up 36 | 12 2 6 1 1 14 Fast Attach 11 | 1 2 3 . . 5 Attach 24 | 5 3 2 . . 14 Detach 6 | 1 2 . . . 3 Swap 22 | 1 3 10 2 . 6 Drop 35 | 5 6 8 4 1 11 Fire 200 | 19 11 32 . 10 128 Melee . | . . . . . . Ram . | . . . . . . Kick . | . . . . . . Crush . | . . . . . . Escape Stasis . | . . . . . . Rewire . | . . . . . . Trap . | . . . . . . Miscellaneous . | . . . . . . Route ------- -11/Scrapyard -10/Materials -10/Mines (discovered 3 exits: *Mat x2 / *Exi) -10/Exiles (discovered 2 exits: [*Min x2]) -9/Mines -8/Materials History --------- Turn | Location | Event 22 | -11/Scrapyard | Discovered new exit (range 15) 896 | -11/Scrapyard | Entered Materials 950 | -10/Materials | Build established: Mutant 1040 | -10/Materials | Discovered new exit (range 13) 1066 | -10/Materials | Entered Mines 1102 | -10/Mines | A weapon hastily lodged in a ceiling crevice suddenly fell to the ground 1110 | -10/Mines | Identified exit to Materials 1306 | -10/Mines | Discovered exit to Materials (range 11) 1339 | -10/Mines | Deemed a non-threat by the Exiles lab entrance 1339 | -10/Mines | Discovered new exit (range 5) 1341 | -10/Mines | Entered Exiles 1347 | -10/Exiles | Discovered new exit (range 14) 1357 | -10/Exiles | Met 8R-AWN 1363 | -10/Exiles | Met EX-HEX 1385 | -10/Exiles | Met EX-DEC 1392 | -10/Exiles | Visited The Gauntlet 1440 | -10/Exiles | Met EX-BIN 1448 | -10/Exiles | Aligned with FarCom system 1448 | -10/Exiles | Given EX-Vault access code 1467 | -10/Exiles | Opened EX-Vault 1468 | -10/Exiles | Build established: Scavenger-Mutant 1474 | -10/Exiles | Found Prototype Flight Unit 1482 | -10/Exiles | Warned to stay clear of 0b10 Research branches 1539 | -10/Exiles | Discovered new exit (range 12) 1591 | -10/Exiles | Left Exiles lab with Flying Fortress v7 1591 | -10/Exiles | Entered Mines 1902 | -9/Mines | Build established: Scavenger-Scout 4051 | -9/Mines | Discovered new exit (range 9) 4052 | -9/Mines | Learned location of 1 exit from Proximity Caves 4055 | -9/Mines | Entered Materials 4055 | -8/Materials | Evolved 4 slots: Propulsion x2, Utility x2 4057 | -8/Materials | Identified Flying Fortress v7 4453 | -8/Materials | Garrison activated, responded to threat 4512 | -8/Materials | Core integrity fell below 50% 4547 | -8/Materials | Core integrity fell below 20% 4604 | -8/Materials | Lost 10 parts (1p3n3u3w) 4616 | -8/Materials | Destroyed by Y-45 Defender with Beam Rifle Last Messages --------------- 04552_ Acquired Lgt. Armor Plating. 04553_ Backup Power III destroyed. 04554_ Critical hit (Burn: +37). 04560_ Acquired Prototype Energy Gun. 04562_ Identified Prc. Beam Rifle. 04563_ Lgt. Armor Plating destroyed. 04568_ Flight Unit destroyed. 04569_ U-05 Engineer builds a Wall. 04573_ Flight Unit destroyed. 04580_ S-10 Pest suffers critical hit (Burn). 04580_ S-10 Pest destroyed. 04584_ Acquired Lgt. Ion Engine. 04588_ S-10 Pest suffers critical hit (Burn). 04594_ Destroyed Flight Unit. 04596_ S-10 Pest overheating. 04596_ S-10 Pest destroyed. 04597_ Acquired 20 matter. 04598_ S-10 Pest destroyed. 04611_ Flight Unit melted. 04611_ S-10 Pest destroyed. Map ----- +----------------------------------------------------+ | ## """ """ + | ?? ??? | | ## """ """ # !== #####? ? ??? | | ## """ """ "!*==*#?### ?? ?##??? | | ## ### ######??##?#??#??? | | ## "T" ### ##???#?###?###??? | | ##############*#########?#?##???? | | ###?####?###?#[###########?##???# | | ?###?###?###?#[# = #####???? | | #??####?###?## #""" #####?#?# | | ?###?#########+#""" ######??? | | ##?##?######!!!#""" ######### | | #######?####! =+ ###?## | | ?##??#?#####%! #""" ! #??#?# | | ??#?##??####!]=#""" ###### | | ##?Y######## * #""" ! ##??? | | #? ? ## # #?##?# ^ | | ##?""" ## ! #####+####?#### ]! | | ???"""? ?####+### #######%]= | | ?#?"?"? # =%=]! | | ??? ? + / T [*= | | ?? ""? "" # = | | ???"?" T" ### ####! ####### | | ?? ?"" "??### ###### ####### | | ## ?? ?? ### # # ####### | | ??########### # ""# ####### | | ??# =@#### # T"# ###### | | ??#"""[==Y%%[ + ""# #?#### | | ?##"R [==#### # # ###### | | ###""" [*#### # # g###### | | ??# "" #??# # # ###### | | ### #?## # !# ########## | | #?########### ###### ########## | | ??#?######### ###### ########## | | ???### !!= | | ?###?# =[%= | | #?#??# [==!%= = | | ???### ###/######/############# | | ???### # # =* ###### | | ??#### # """ [ #%=% ! #?#### | | #??### # """ [ #*!= ###### | | ??#?###### """ [[# "T" #?#### | | ????###### # """ ###### | | ?##??#?### """ # ##?### | | ?#????#### """ =############### | | ??#???#### """ #######?##?#### | | ?????##?## ##?########?### | | ?????##################?###?##### | | ???????####?############?#?###??# | | ????#????#??#?#######?#######?#?? | | ???????#??##?##############?###?# | +----------------------------------------------------+ Best States ------------- Heat Dissipation 31 Energy Generation 14 Energy Capacity 160 Matter Stores 300 Matter Capacity 300 Sight Range 16 Terrain Scan Range 16 Terrain Scan Density 110 Armor Coverage 150 Evasion (%) 62 Targeting Accuracy 8 Item Schematics ----------------- None Robot Schematics ------------------ None Fabricated ------------ Nothing Alien Tech Used ----------------- None Achievements -------------- None Challenges ------------ None Game ------ Seed SmartbombSigixBay Manual? 0 Play Time 00:45:51 Cumulative 21.2 hours Start 2024.04.11 @ 00:44:15 End 2024.04.11 @ 01:49:04 Sessions 1 Manual Loads 0 Difficulty Rogue Special Mode None Game No. 23 Rogue 8 Adventurer 0 Explorer 15 Win Type - Total 0 Types 0/0/0/0/0/0/0/0/0 Lore% 14 Gallery% 24 Achievement% 18 Wizard Run 0 Options --------- Layout 1 ASCII 0 Keyboard 0 Movement Mouse Keybinds 0 Fullscreen 1 Font 24/Smallcaps Map View 50x35 Zoom Use 0% Tactical HUD 1 Map Filters NONE Filters NONE Steam 1 RUN: 00fc8226-38df-42c2-8141-1750825ebb91